Workbook

Sheet sheet1
A1: 附件：
A2: 兴义义龙2023年事业单位新增人员公开招聘总成绩及进入体检人员名单
A3: 序号 | B3: 面试准考证号 | C3: 报考单位 | D3: 报考岗位 | E3: 报考岗位代码 | F3: 笔试总成绩（笔试卷面成绩总分折算成百分制后加上加分） | G3: 面试成绩 | H3: 总成绩 | I3: 体能测试是否合格 | J3: 是否进入体检环节 | K3: 备注
A4: 1 | B4: 20230101 | C4: 兴义市统计局 | D4: 兴义市乡镇统计服务中心 | E4: 22321230101 | F4: 76.83 | G4: 81.8 | H4: =(F4*0.6)+(G4*0.4) -> 78.82 | J4: 是
A5: 2 | B5: 20230102 | C5: 兴义市统计局 | D5: 兴义市乡镇统计服务中心 | E5: 22321230101 | F5: 73.50 | G5: 85.8 | H5: =(F5*0.6)+(G5*0.4) -> 78.42
A6: 3 | B6: 20230104 | C6: 兴义市司法局 | D6: 兴义市社区矫正中心 | E6: 22321230201 | F6: 68.50 | G6: 81 | H6: =(F6*0.6)+(G6*0.4) -> 73.50 | J6: 是
A7: 4 | B7: 20230103 | C7: 兴义市司法局 | D7: 兴义市社区矫正中心 | E7: 22321230201 | F7: 69.17 | G7: 缺考 | H7: =(F7*0.6) -> 41.50
A8: 5 | B8: 20230105 | C8: 兴义市应急管理局 | D8: 兴义市救灾救援物资保障中心 | E8: 22321230301 | F8: 71.17 | G8: 80 | H8: =(F8*0.6)+(G8*0.4) -> 74.70 | J8: 是
A9: 6 | B9: 20230106 | C9: 兴义市应急管理局 | D9: 兴义市救灾救援物资保障中心 | E9: 22321230301 | F9: 66.50 | G9: 78.8 | H9: 71.42
A10: 7 | B10: 20230107 | C10: 兴义市林业局 | D10: 兴义市森林病虫害防治站 | E10: 22321230401 | F10: 73.17 | G10: 83.4 | H10: 77.26 | J10: 是
A11: 8 | B11: 20230108 | C11: 兴义市林业局 | D11: 兴义市森林病虫害防治站 | E11: 22321230401 | F11: 70.83 | G11: 77 | H11: 73.30
A12: 9 | B12: 20230109 | C12: 兴义市气象局 | D12: 兴义市人工影响天气服务中心 | E12: 22321230501 | F12: 73.50 | G12: 84.2 | H12: 77.78 | J12: 是
A13: 10 | B13: 20230110 | C13: 兴义市气象局 | D13: 兴义市人工影响天气服务中心 | E13: 22321230501 | F13: 70.33 | G13: 82.8 | H13: 75.32
A14: 11 | B14: 20230111 | C14: 兴义市文体广电旅游局 | D14: 兴义市文化馆 | E14: 22321230601 | F14: 70.50 | G14: 84.8 | H14: 76.22 | J14: 是
A15: 12 | B15: 20230112 | C15: 兴义市文体广电旅游局 | D15: 兴义市文化馆 | E15: 22321230601 | F15: 66.83 | G15: 80 | H15: 72.10
A16: 13 | B16: 20230901 | C16: 兴义市水务局 | D16: 兴义市水环境建设服务中心 | E16: 22321230701 | F16: 70.00 | G16: 79.2 | H16: 73.68 | J16: 是
A17: 14 | B17: 20230902 | C17: 兴义市水务局 | D17: 兴义市水环境建设服务中心 | E17: 22321230701 | F17: 68.83 | G17: 78 | H17: 72.50
A18: 15 | B18: 20230903 | C18: 兴义市医疗保障局 | D18: 兴义市医疗保险档案中心 | E18: 22321230801 | F18: 37.50 | G18: 68.4 | H18: 49.86 | J18: 是
A19: 16 | B19: 20230113 | C19: 兴义市发展和改革局 | D19: 兴义市节约能源服务中心 | E19: 22321230901 | F19: 71.67 | G19: 85.6 | H19: 77.24 | J19: 是
A20: 17 | B20: 20230114 | C20: 兴义市发展和改革局 | D20: 兴义市节约能源服务中心 | E20: 22321230901 | F20: 69.50 | G20: 82.8 | H20: 74.82
A21: 18 | B21: 20230116 | C21: 兴义市发展和改革局 | D21: 兴义市粮食和物资储备保障中心 | E21: 22321230902 | F21: 63.67 | G21: 82.6 | H21: 71.24 | J21: 是
A22: 19 | B22: 20230115 | C22: 兴义市发展和改革局 | D22: 兴义市粮食和物资储备保障中心 | E22: 22321230902 | F22: 65.83 | G22: 77.4 | H22: 70.46
A23: 20 | B23: 20230117 | C23: 兴义市住房和城乡建设局 | D23: 兴义市建设工程质量安全服务中心 | E23: 22321231001 | F23: 68.33 | G23: 85.2 | H23: 75.08 | J23: 是
A24: 21 | B24: 20230118 | C24: 兴义市住房和城乡建设局 | D24: 兴义市建设工程质量安全服务中心 | E24: 22321231001 | F24: 66.83 | G24: 81 | H24: 72.50 | J24: 是
A25: 22 | B25: 20230119 | C25: 兴义市住房和城乡建设局 | D25: 兴义市建设工程质量安全服务中心 | E25: 22321231001 | F25: 66.67 | G25: 78.6 | H25: 71.44
A26: 23 | B26: 20230121 | C26: 兴义市住房和城乡建设局 | D26: 兴义市建设工程质量安全服务中心 | E26: 22321231001 | F26: 66.17 | G26: 79 | H26: 71.30
A27: 24 | B27: 20230120 | C27: 兴义市住房和城乡建设局 | D27: 兴义市建设工程质量安全服务中心 | E27: 22321231001 | F27: 66.17 | G27: 69.8 | H27: 67.62
A28: 25 | B28: 20230122 | C28: 兴义市住房和城乡建设局 | D28: 兴义市建设工程质量安全服务中心 | E28: 22321231002 | F28: 66.67 | G28: 84 | H28: 73.60 | J28: 是
A29: 26 | B29: 20230123 | C29: 兴义市住房和城乡建设局 | D29: 兴义市建设工程质量安全服务中心 | E29: 22321231002 | F29: 66.33 | G29: 74.8 | H29: 69.72
A30: 27 | B30: 20230126 | C30: 兴义市住房和城乡建设局 | D30: 兴义市住房和城乡建设发展中心 | E30: 22321231003 | F30: 69.33 | G30: 85.6 | H30: 75.84 | J30: 是
A31: 28 | B31: 20230125 | C31: 兴义市住房和城乡建设局 | D31: 兴义市住房和城乡建设发展中心 | E31: 22321231003 | F31: 72.17 | G31: 81 | H31: 75.70 | J31: 是
A32: 29 | B32: 20230124 | C32: 兴义市住房和城乡建设局 | D32: 兴义市住房和城乡建设发展中心 | E32: 22321231003 | F32: 72.67 | G32: 79.6 | H32: 75.44
A33: 30 | B33: 20230127 | C33: 兴义市住房和城乡建设局 | D33: 兴义市住房和城乡建设发展中心 | E33: 22321231003 | F33: 67.33 | G33: 73 | H33: 69.60
A34: 31 | B34: 20230128 | C34: 兴义市住房和城乡建设局 | D34: 兴义市住房和城乡建设发展中心 | E34: 22321231004 | F34: 70.00 | G34: 81 | H34: 74.40 | J34: 是
A35: 32 | B35: 20230129 | C35: 兴义市住房和城乡建设局 | D35: 兴义市住房和城乡建设发展中心 | E35: 22321231004 | F35: 67.50 | G35: 81 | H35: 72.90
A36: 33 | B36: 20230201 | C36: 兴义市交通运输局 | D36: 兴义市交通运输局综合服务中心 | E36: 22321231101 | F36: 70.50 | G36: 85.2 | H36: 76.38 | J36: 是
A37: 34 | B37: 20230202 | C37: 兴义市交通运输局 | D37: 兴义市交通运输局综合服务中心 | E37: 22321231101 | F37: 68.00 | G37: 77.4 | H37: 71.76
A38: 35 | B38: 20230203 | C38: 兴义市能源局 | D38: 兴义市煤矿安全生产技术服务中心（驻矿安监员） | E38: 22321231201 | F38: 48.00 | G38: 71.8 | H38: 57.52 | J38: 是
A39: 36 | B39: 20230204 | C39: 兴义市能源局 | D39: 兴义市煤矿安全生产技术服务中心（驻矿安监员） | E39: 22321231201 | F39: 46.17 | G39: 缺考 | H39: =(F39*0.6) -> 27.70
A40: 37 | B40: 20230206 | C40: 兴义市综合行政执法局 | D40: 兴义市市政设施服务中心 | E40: 22321231301 | F40: 62.67 | G40: 82.4 | H40: =(F40*0.6)+(G40*0.4) -> 70.56 | J40: 是
A41: 38 | B41: 20230205 | C41: 兴义市综合行政执法局 | D41: 兴义市市政设施服务中心 | E41: 22321231301 | F41: 67.00 | G41: 73.6 | H41: 69.64
A42: 39 | B42: 20230207 | C42: 兴义市自然资源局 | D42: 兴义市自然资源局捧乍自然资源所 | E42: 22321231401 | F42: 65.17 | G42: 84.8 | H42: 73.02 | J42: 是
A43: 40 | B43: 20230208 | C43: 兴义市自然资源局 | D43: 兴义市自然资源局捧乍自然资源所 | E43: 22321231401 | F43: 64.83 | G43: 80.8 | H43: 71.22
A44: 41 | B44: 20230209 | C44: 兴义市自然资源局 | D44: 兴义市自然资源局桔山分局 | E44: 22321231402 | F44: 64.83 | G44: 78 | H44: 70.10 | J44: 是
A45: 42 | B45: 20230210 | C45: 兴义市自然资源局 | D45: 兴义市自然资源局桔山分局 | E45: 22321231402 | F45: 60.83 | G45: 75.6 | H45: 66.74
A46: 43 | B46: 20230211 | C46: 兴义市自然资源局 | D46: 兴义市自然资源档案馆 | E46: 22321231403 | F46: 67.50 | G46: 82.4 | H46: 73.46 | J46: 是
A47: 44 | B47: 20230212 | C47: 兴义市自然资源局 | D47: 兴义市自然资源档案馆 | E47: 22321231403 | F47: 63.33 | G47: 缺考 | H47: =(F47*0.6) -> 38.00
A48: 45 | B48: 20230213 | C48: 兴义市公安局 | D48: 兴义市警务应急保障服务中心 | E48: 22321231501 | F48: 66.50 | G48: 75.6 | H48: =(F48*0.6)+(G48*0.4) -> 70.14 | I48: 否
A49: 46 | B49: 20230214 | C49: 兴义市公安局 | D49: 兴义市警务应急保障服务中心 | E49: 22321231501 | F49: 66.33 | G49: 74.4 | H49: 69.56 | I49: 是 | J49: 是
A50: 47 | B50: 20230218 | C50: 兴义市公安局 | D50: 兴义市警务应急保障服务中心 | E50: 22321231501 | F50: 62.67 | G50: 79.4 | H50: 69.36 | I50: 否
A51: 48 | B51: 20230216 | C51: 兴义市公安局 | D51: 兴义市警务应急保障服务中心 | E51: 22321231501 | F51: 63.83 | G51: 76.6 | H51: 68.94 | I51: 是 | J51: 是
A52: 49 | B52: 20230215 | C52: 兴义市公安局 | D52: 兴义市警务应急保障服务中心 | E52: 22321231501 | F52: 64.00 | G52: 74.6 | H52: 68.24 | I52: 是 | J52: 是
A53: 50 | B53: 20230217 | C53: 兴义市公安局 | D53: 兴义市警务应急保障服务中心 | E53: 22321231501 | F53: 62.67 | G53: 76.2 | H53: 68.08 | I53: 是 | J53: 是
A54: 51 | B54: 20230228 | C54: 兴义市公安局 | D54: 兴义市警务应急保障服务中心 | E54: 22321231501 | F54: 57.17 | G54: 79 | H54: 65.90 | I54: 否
A55: 52 | B55: 20230221 | C55: 兴义市公安局 | D55: 兴义市警务应急保障服务中心 | E55: 22321231501 | F55: 59.67 | G55: 74 | H55: 65.40 | I55: 是 | J55: 是
A56: 53 | B56: 20230219 | C56: 兴义市公安局 | D56: 兴义市警务应急保障服务中心 | E56: 22321231501 | F56: 61.67 | G56: 70 | H56: 65.00 | I56: 否
A57: 54 | B57: 20230224 | C57: 兴义市公安局 | D57: 兴义市警务应急保障服务中心 | E57: 22321231501 | F57: 58.83 | G57: 74 | H57: 64.90 | I57: 否
A58: 55 | B58: 20230223 | C58: 兴义市公安局 | D58: 兴义市警务应急保障服务中心 | E58: 22321231501 | F58: 59.17 | G58: 73.4 | H58: 64.86 | I58: 是 | J58: 是
A59: 56 | B59: 20230225 | C59: 兴义市公安局 | D59: 兴义市警务应急保障服务中心 | E59: 22321231501 | F59: 57.67 | G59: 74.2 | H59: 64.28 | I59: 否
A60: 57 | B60: 20230227 | C60: 兴义市公安局 | D60: 兴义市警务应急保障服务中心 | E60: 22321231501 | F60: 57.17 | G60: 74.8 | H60: 64.22 | I60: 是 | J60: 是
A61: 58 | B61: 20230229 | C61: 兴义市公安局 | D61: 兴义市警务应急保障服务中心 | E61: 22321231501 | F61: 57.17 | G61: 73.8 | H61: 63.82 | I61: 缺考
A62: 59 | B62: 20230226 | C62: 兴义市公安局 | D62: 兴义市警务应急保障服务中心 | E62: 22321231501 | F62: 57.17 | G62: 73.8 | H62: 63.82 | I62: 是
A63: 60 | B63: 20230222 | C63: 兴义市公安局 | D63: 兴义市警务应急保障服务中心 | E63: 22321231501 | F63: 59.33 | G63: 68.6 | H63: 63.04 | I63: 否
A64: 61 | B64: 20230220 | C64: 兴义市公安局 | D64: 兴义市警务应急保障服务中心 | E64: 22321231501 | F64: 60.17 | G64: 缺考 | H64: =(F64*0.6) -> 36.10
A65: 62 | B65: 20230301 | C65: 兴义市公安局 | D65: 兴义市监管场所医疗卫生所 | E65: 22321231502 | F65: 61.70 | G65: 65.2 | H65: =(F65*0.6)+(G65*0.4) -> 63.10 | J65: 是
A66: 63 | B66: 20230302 | C66: 兴义市公安局 | D66: 兴义市监管场所医疗卫生所 | E66: 22321231502 | F66: 55.73 | G66: 缺考 | H66: =(F66*0.6) -> 33.44
A67: 64 | B67: 20230303 | C67: 兴义市公安局 | D67: 兴义市监管场所医疗卫生所 | E67: 22321231503 | F67: 62.37 | G67: 76 | H67: =(F67*0.6)+(G67*0.4) -> 67.82 | J67: 是
A68: 65 | B68: 20230304 | C68: 兴义市公安局 | D68: 兴义市监管场所医疗卫生所 | E68: 22321231503 | F68: 60.80 | G68: 75.8 | H68: 66.80
A69: 66 | B69: 20230305 | C69: 兴义市财政局 | D69: 兴义市财政局沧江分局 | E69: 22321231601 | F69: 71.33 | G69: 77.6 | H69: 73.84 | J69: 是
A70: 67 | B70: 20230306 | C70: 兴义市财政局 | D70: 兴义市财政局沧江分局 | E70: 22321231601 | F70: 68.67 | G70: 80.2 | H70: 73.28
A71: 68 | B71: 20230307 | C71: 兴义市财政局 | D71: 兴义市财政局三江口分局 | E71: 22321231602 | F71: 66.50 | G71: 82.2 | H71: 72.78 | J71: 是
A72: 69 | B72: 20230308 | C72: 兴义市财政局 | D72: 兴义市财政局三江口分局 | E72: 22321231602 | F72: 65.83 | G72: 83.2 | H72: 72.78 | J72: 是
A73: 70 | B73: 20230309 | C73: 兴义市财政局 | D73: 兴义市财政局鲁布格分局 | E73: 22321231603 | F73: 67.50 | G73: 75 | H73: 70.50 | J73: 是
A74: 71 | B74: 20230310 | C74: 兴义市财政局 | D74: 兴义市财政局鲁布格分局 | E74: 22321231603 | F74: 62.83 | G74: 77.6 | H74: 68.74
A75: 72 | B75: 20230313 | C75: 兴义市财政局 | D75: 兴义市财政局七舍分局 | E75: 22321231604 | F75: 68.67 | G75: 77.8 | H75: 72.32 | J75: 是
A76: 73 | B76: 20230311 | C76: 兴义市财政局 | D76: 兴义市财政局七舍分局 | E76: 22321231604 | F76: 69.17 | G76: 75 | H76: 71.50
A77: 74 | B77: 20230312 | C77: 兴义市财政局 | D77: 兴义市财政局七舍分局 | E77: 22321231604 | F77: 68.67 | G77: 74.8 | H77: 71.12
A78: 75 | B78: 20230314 | C78: 兴义市财政局 | D78: 兴义市财政局郑屯分局 | E78: 22321231605 | F78: 75.33 | G78: 78.2 | H78: 76.48 | J78: 是
A79: 76 | B79: 20230315 | C79: 兴义市财政局 | D79: 兴义市财政局郑屯分局 | E79: 22321231605 | F79: 70.17 | G79: 78.8 | H79: 73.62
A80: 77 | B80: 20230316 | C80: 黔西南高新技术产业开发区 | D80: 黔西南高新技术产业开发区政务服务中心（群众工作服务中心） | E80: 22321231701 | F80: 74.67 | G80: 75.8 | H80: 75.12 | J80: 是
A81: 78 | B81: 20230317 | C81: 黔西南高新技术产业开发区 | D81: 黔西南高新技术产业开发区政务服务中心（群众工作服务中心） | E81: 22321231701 | F81: 71.17 | G81: 78.4 | H81: 74.06 | J81: 是
A82: 79 | B82: 20230318 | C82: 黔西南高新技术产业开发区 | D82: 黔西南高新技术产业开发区政务服务中心（群众工作服务中心） | E82: 22321231701 | F82: 69.67 | G82: 74.6 | H82: 71.64
A83: 80 | B83: 20230319 | C83: 黔西南高新技术产业开发区 | D83: 黔西南高新技术产业开发区政务服务中心（群众工作服务中心） | E83: 22321231701 | F83: 69.17 | G83: 74.4 | H83: 71.26
A84: 81 | B84: 20230320 | C84: 黔西南高新技术产业开发区 | D84: 黔西南高新技术产业开发区园区管理服务中心工作人员 | E84: 22321231702 | F84: 72.00 | G84: 79 | H84: 74.80 | J84: 是
A85: 82 | B85: 20230322 | C85: 黔西南高新技术产业开发区 | D85: 黔西南高新技术产业开发区园区管理服务中心工作人员 | E85: 22321231702 | F85: 68.00 | G85: 75.6 | H85: 71.04
A86: 83 | B86: 20230321 | C86: 黔西南高新技术产业开发区 | D86: 黔西南高新技术产业开发区园区管理服务中心工作人员 | E86: 22321231702 | F86: 68.00 | G86: 缺考 | H86: =(F86*0.6) -> 40.80
A87: 84 | B87: 20230323 | C87: 黔西南高新技术产业开发区 | D87: 黔西南高新技术产业开发区园区管理服务中心工作人员 | E87: 22321231703 | F87: 67.83 | G87: 78.8 | H87: =(F87*0.6)+(G87*0.4) -> 72.22 | J87: 是
A88: 85 | B88: 20230324 | C88: 黔西南高新技术产业开发区 | D88: 黔西南高新技术产业开发区园区管理服务中心工作人员 | E88: 22321231703 | F88: 65.83 | G88: 81 | H88: 71.90
A89: 86 | B89: 20230326 | C89: 黔西南高新技术产业开发区 | D89: 黔西南高新技术产业开发区园区管理服务中心工作人员 | E89: 22321231704 | F89: 69.50 | G89: 76.8 | H89: 72.42 | J89: 是
A90: 87 | B90: 20230325 | C90: 黔西南高新技术产业开发区 | D90: 黔西南高新技术产业开发区园区管理服务中心工作人员 | E90: 22321231704 | F90: 70.50 | G90: 75 | H90: 72.30 | J90: 是
A91: 88 | B91: 20230328 | C91: 黔西南高新技术产业开发区 | D91: 黔西南高新技术产业开发区园区管理服务中心工作人员 | E91: 22321231704 | F91: 67.17 | G91: 74.8 | H91: 70.22
A92: 89 | B92: 20230327 | C92: 黔西南高新技术产业开发区 | D92: 黔西南高新技术产业开发区园区管理服务中心工作人员 | E92: 22321231704 | F92: 69.00 | G92: 71 | H92: 69.80
A93: 90 | B93: 20230401 | C93: 黔西南高新技术产业开发区 | D93: 黔西南高新技术产业开发区招商引资服务中心工作人员 | E93: 22321231705 | F93: 69.67 | G93: 82.6 | H93: 74.84 | J93: 是
A94: 91 | B94: 20230402 | C94: 黔西南高新技术产业开发区 | D94: 黔西南高新技术产业开发区招商引资服务中心工作人员 | E94: 22321231705 | F94: 69.67 | G94: 81.4 | H94: 74.36
A95: 92 | B95: 20230404 | C95: 黔西南高新技术产业开发区 | D95: 黔西南高新技术产业开发区招商引资服务中心工作人员 | E95: 22321231706 | F95: 68.17 | G95: 85.8 | H95: 75.22 | J95: 是
A96: 93 | B96: 20230403 | C96: 黔西南高新技术产业开发区 | D96: 黔西南高新技术产业开发区招商引资服务中心工作人员 | E96: 22321231706 | F96: 68.50 | G96: 77.8 | H96: 72.22
A97: 94 | B97: 20230406 | C97: 黔西南高新技术产业开发区 | D97: 黔西南高新技术产业开发区招商引资服务中心工作人员 | E97: 22321231707 | F97: 64.50 | G97: 82.4 | H97: 71.66 | J97: 是
A98: 95 | B98: 20230405 | C98: 黔西南高新技术产业开发区 | D98: 黔西南高新技术产业开发区招商引资服务中心工作人员 | E98: 22321231707 | F98: 64.67 | G98: 77 | H98: 69.60
A99: 96 | B99: 20230408 | C99: 兴义市黄草街道办事处 | D99: 兴义市黄草街道社会事务服务中心 | E99: 22321231801 | F99: 64.50 | G99: 84.6 | H99: 72.54 | J99: 是
A100: 97 | B100: 20230407 | C100: 兴义市黄草街道办事处 | D100: 兴义市黄草街道社会事务服务中心 | E100: 22321231801 | F100: 66.33 | G100: 80 | H100: 71.80
A101: 98 | B101: 20230410 | C101: 兴义市兴泰街道办事处 | D101: 兴义市兴泰街道社会治安综合治理中心（网格化管理服务中心） | E101: 22321231901 | F101: 69.67 | G101: 80.4 | H101: 73.96 | J101: 是
A102: 99 | B102: 20230409 | C102: 兴义市兴泰街道办事处 | D102: 兴义市兴泰街道社会治安综合治理中心（网格化管理服务中心） | E102: 22321231901 | F102: 70.33 | G102: 79 | H102: 73.80
A103: 100 | B103: 20230411 | C103: 兴义市坪东街道办事处 | D103: 兴义市坪东街道应急管理服务中心 | E103: 22321232001 | F103: 63.00 | G103: 82.6 | H103: 70.84 | J103: 是
A104: 101 | B104: 20230412 | C104: 兴义市坪东街道办事处 | D104: 兴义市坪东街道应急管理服务中心 | E104: 22321232001 | F104: 61.33 | G104: 79.6 | H104: 68.64
A105: 102 | B105: 20230413 | C105: 兴义市木贾街道办事处 | D105: 兴义市木贾街道退役军人服务站 | E105: 22321232101 | F105: 70.50 | G105: 83.8 | H105: 75.82 | J105: 是
A106: 103 | B106: 20230415 | C106: 兴义市木贾街道办事处 | D106: 兴义市木贾街道退役军人服务站 | E106: 22321232101 | F106: 69.17 | G106: 85.2 | H106: 75.58
A107: 104 | B107: 20230414 | C107: 兴义市木贾街道办事处 | D107: 兴义市木贾街道退役军人服务站 | E107: 22321232101 | F107: 69.17 | G107: 80.2 | H107: 73.58
A108: 105 | B108: 20230416 | C108: 兴义市下五屯街道办事处 | D108: 兴义市下五屯街道城市综合管理服务中心 | E108: 22321232201 | F108: 73.83 | G108: 80.6 | H108: 76.54 | J108: 是
A109: 106 | B109: 20230417 | C109: 兴义市下五屯街道办事处 | D109: 兴义市下五屯街道城市综合管理服务中心 | E109: 22321232201 | F109: 72.67 | G109: 80 | H109: 75.60
A110: 107 | B110: 20230418 | C110: 兴义市万峰林街道办事处 | D110: 兴义市万峰林街道党务政务服务中心 | E110: 22321232301 | F110: 68.17 | G110: 87 | H110: 75.70 | J110: 是
A111: 108 | B111: 20230419 | C111: 兴义市万峰林街道办事处 | D111: 兴义市万峰林街道党务政务服务中心 | E111: 22321232301 | F111: 66.50 | G111: 79.4 | H111: 71.66
A112: 109 | B112: 20230421 | C112: 兴义市洒金街道办事处 | D112: 兴义市洒金街道党务政务服务中心 | E112: 22321232401 | F112: 70.67 | G112: 85 | H112: 76.40 | J112: 是
A113: 110 | B113: 20230420 | C113: 兴义市洒金街道办事处 | D113: 兴义市洒金街道党务政务服务中心 | E113: 22321232401 | F113: 73.67 | G113: 75.4 | H113: 74.36
A114: 111 | B114: 20230422 | C114: 兴义市洒金街道办事处 | D114: 兴义市洒金街道社会事务服务中心 | E114: 22321232402 | F114: 68.00 | G114: 78.6 | H114: 72.24 | J114: 是
A115: 112 | B115: 20230423 | C115: 兴义市洒金街道办事处 | D115: 兴义市洒金街道社会事务服务中心 | E115: 22321232402 | F115: 67.00 | G115: 缺考 | H115: =(F115*0.6) -> 40.20
A116: 113 | B116: 20230424 | C116: 兴义市洒金街道办事处 | D116: 兴义市洒金街道城市综合管理服务中心 | E116: 22321232403 | F116: 72.33 | G116: 83.2 | H116: =(F116*0.6)+(G116*0.4) -> 76.68 | J116: 是
A117: 114 | B117: 20230425 | C117: 兴义市洒金街道办事处 | D117: 兴义市洒金街道城市综合管理服务中心 | E117: 22321232403 | F117: 66.83 | G117: 84.2 | H117: 73.78
A118: 115 | B118: 20230427 | C118: 兴义市马岭街道办事处 | D118: 兴义市马岭街道农业农村服务中心（乡村振兴服务中心） | E118: 22321232501 | F118: 64.17 | G118: 82 | H118: 71.30 | J118: 是
A119: 116 | B119: 20230426 | C119: 兴义市马岭街道办事处 | D119: 兴义市马岭街道农业农村服务中心（乡村振兴服务中心） | E119: 22321232501 | F119: 66.50 | G119: 74.2 | H119: 69.58
A120: 117 | B120: 20230501 | C120: 兴义市丰都街道办事处 | D120: 兴义市丰都街道新市民综合服务中心 | E120: 22321232601 | F120: 64.33 | G120: 76 | H120: 69.00 | J120: 是
A121: 118 | B121: 20230502 | C121: 兴义市丰都街道办事处 | D121: 兴义市丰都街道新市民综合服务中心 | E121: 22321232601 | F121: 64.33 | G121: 72 | H121: 67.40
A122: 119 | B122: 20230504 | C122: 兴义市木陇街道办事处 | D122: 兴义市木陇街道科技宣教文化服务中心 | E122: 22321232701 | F122: 64.00 | G122: 78 | H122: 69.60 | J122: 是
A123: 120 | B123: 20230503 | C123: 兴义市木陇街道办事处 | D123: 兴义市木陇街道科技宣教文化服务中心 | E123: 22321232701 | F123: 64.83 | G123: 75.2 | H123: 68.98
A124: 121 | B124: 20230505 | C124: 兴义市木陇街道办事处 | D124: 兴义市木陇街道就业培训指导中心 | E124: 22321232702 | F124: 74.67 | G124: 77.8 | H124: 75.92 | J124: 是
A125: 122 | B125: 20230506 | C125: 兴义市木陇街道办事处 | D125: 兴义市木陇街道就业培训指导中心 | E125: 22321232702 | F125: 73.67 | G125: 78.8 | H125: 75.72
A126: 123 | B126: 20230507 | C126: 兴义市木陇街道办事处 | D126: 兴义市木陇街道综治服务中心 | E126: 22321232703 | F126: 66.33 | G126: 83.2 | H126: 73.08 | J126: 是
A127: 124 | B127: 20230508 | C127: 兴义市木陇街道办事处 | D127: 兴义市木陇街道综治服务中心 | E127: 22321232703 | F127: 66.17 | G127: 73.8 | H127: 69.22
A128: 125 | B128: 20230510 | C128: 兴义市则戎镇人民政府 | D128: 兴义市则戎镇党务政务服务中心 | E128: 22321232801 | F128: 65.50 | G128: 79.2 | H128: 70.98 | J128: 是
A129: 126 | B129: 20230509 | C129: 兴义市则戎镇人民政府 | D129: 兴义市则戎镇党务政务服务中心 | E129: 22321232801 | F129: 67.17 | G129: 74.6 | H129: 70.14
A130: 127 | B130: 20230511 | C130: 兴义市则戎镇人民政府 | D130: 兴义市则戎镇农业农村服务中心（乡村振兴服务中心） | E130: 22321232802 | F130: 76.00 | G130: 82.4 | H130: 78.56 | J130: 是
A131: 128 | B131: 20230512 | C131: 兴义市则戎镇人民政府 | D131: 兴义市则戎镇农业农村服务中心（乡村振兴服务中心） | E131: 22321232802 | F131: 68.67 | G131: 72.6 | H131: 70.24
A132: 129 | B132: 20230513 | C132: 兴义市南盘江镇人民政府 | D132: 兴义市南盘江镇农业农村服务中心（乡村振兴服务中心） | E132: 22321232901 | F132: 65.17 | G132: 73.8 | H132: 68.62 | J132: 是
A133: 130 | B133: 20230514 | C133: 兴义市南盘江镇人民政府 | D133: 兴义市南盘江镇农业农村服务中心（乡村振兴服务中心） | E133: 22321232901 | F133: 60.83 | G133: 78.2 | H133: 67.78
A134: 131 | B134: 20230515 | C134: 兴义市南盘江镇人民政府 | D134: 兴义市南盘江镇党务政务服务中心 | E134: 22321232902 | F134: 66.67 | G134: 79.2 | H134: 71.68 | J134: 是
A135: 132 | B135: 20230516 | C135: 兴义市南盘江镇人民政府 | D135: 兴义市南盘江镇党务政务服务中心 | E135: 22321232902 | F135: 66.17 | G135: 75.6 | H135: 69.94
A136: 133 | B136: 20230517 | C136: 兴义市清水河镇人民政府 | D136: 兴义市清水河镇农业农村服务中心（乡村振兴服务中心） | E136: 22321233001 | F136: 68.17 | G136: 82 | H136: 73.70 | J136: 是
A137: 134 | B137: 20230518 | C137: 兴义市清水河镇人民政府 | D137: 兴义市清水河镇农业农村服务中心（乡村振兴服务中心） | E137: 22321233001 | F137: 68.00 | G137: 61 | H137: 65.20
A138: 135 | B138: 20230520 | C138: 兴义市清水河镇人民政府 | D138: 兴义市清水河镇综合行政执法队 | E138: 22321233002 | F138: 65.67 | G138: 76 | H138: 69.80 | J138: 是
A139: 136 | B139: 20230519 | C139: 兴义市清水河镇人民政府 | D139: 兴义市清水河镇综合行政执法队 | E139: 22321233002 | F139: 65.83 | G139: 75.2 | H139: 69.58
A140: 137 | B140: 20230521 | C140: 兴义市乌沙镇人民政府 | D140: 兴义市乌沙镇社会事务服务中心 | E140: 22321233101 | F140: 67.83 | G140: 79 | H140: 72.30 | J140: 是
A141: 138 | B141: 20230522 | C141: 兴义市乌沙镇人民政府 | D141: 兴义市乌沙镇社会事务服务中心 | E141: 22321233101 | F141: 67.00 | G141: 77 | H141: 71.00
A142: 139 | B142: 20230523 | C142: 兴义市乌沙镇人民政府 | D142: 兴义市乌沙镇应急管理服务中心 | E142: 22321233102 | F142: 72.00 | G142: 81.8 | H142: 75.92 | J142: 是
A143: 140 | B143: 20230524 | C143: 兴义市乌沙镇人民政府 | D143: 兴义市乌沙镇应急管理服务中心 | E143: 22321233102 | F143: 67.83 | G143: 79.4 | H143: 72.46
A144: 141 | B144: 20230525 | C144: 兴义市鲁布格镇人民政府 | D144: 兴义市鲁布格镇农业农村服务中心（乡村振兴服务中心） | E144: 22321233201 | F144: 62.83 | G144: 77 | H144: 68.50 | J144: 是
A145: 142 | B145: 20230526 | C145: 兴义市鲁布格镇人民政府 | D145: 兴义市鲁布格镇农业农村服务中心（乡村振兴服务中心） | E145: 22321233201 | F145: 62.83 | G145: 73 | H145: 66.90
A146: 143 | B146: 20230527 | C146: 兴义市鲁布格镇人民政府 | D146: 兴义市鲁布格镇社会治安综合治理服务中心（网格化管理服务中心） | E146: 22321233202 | F146: 62.83 | G146: 79.4 | H146: 69.46 | J146: 是
A147: 144 | B147: 20230528 | C147: 兴义市鲁布格镇人民政府 | D147: 兴义市鲁布格镇社会治安综合治理服务中心（网格化管理服务中心） | E147: 22321233202 | F147: 60.50 | G147: 79.8 | H147: 68.22
A148: 145 | B148: 20230601 | C148: 兴义市鲁布格镇人民政府 | D148: 兴义市鲁布格镇应急管理服务中心 | E148: 22321233203 | F148: 65.67 | G148: 76 | H148: 69.80 | J148: 是
A149: 146 | B149: 20230602 | C149: 兴义市鲁布格镇人民政府 | D149: 兴义市鲁布格镇应急管理服务中心 | E149: 22321233203 | F149: 64.00 | G149: 76 | H149: 68.80
A150: 147 | B150: 20230603 | C150: 兴义市白碗窑镇人民政府 | D150: 兴义市白碗窑镇党务政务服务中心 | E150: 22321233301 | F150: 65.83 | G150: 79.6 | H150: 71.34 | J150: 是
A151: 148 | B151: 20230604 | C151: 兴义市白碗窑镇人民政府 | D151: 兴义市白碗窑镇党务政务服务中心 | E151: 22321233301 | F151: 64.33 | G151: 80 | H151: 70.60
A152: 149 | B152: 20230605 | C152: 兴义市白碗窑镇人民政府 | D152: 兴义市白碗窑镇社会事务服务中心 | E152: 22321233302 | F152: 67.83 | G152: 83.6 | H152: 74.14 | J152: 是
A153: 150 | B153: 20230606 | C153: 兴义市白碗窑镇人民政府 | D153: 兴义市白碗窑镇社会事务服务中心 | E153: 22321233302 | F153: 63.33 | G153: 80 | H153: 70.00
A154: 151 | B154: 20230607 | C154: 兴义市敬南镇人民政府 | D154: 兴义市敬南镇农业农村服务中心（乡村振兴服务中心） | E154: 22321233401 | F154: 68.17 | G154: 81.8 | H154: 73.62 | J154: 是
A155: 152 | B155: 20230608 | C155: 兴义市敬南镇人民政府 | D155: 兴义市敬南镇农业农村服务中心（乡村振兴服务中心） | E155: 22321233401 | F155: 66.67 | G155: 77.8 | H155: 71.12
A156: 153 | B156: 20230610 | C156: 兴义市敬南镇人民政府 | D156: 兴义市敬南镇农业农村服务中心（乡村振兴服务中心） | E156: 22321233402 | F156: 58.83 | G156: 80.8 | H156: 67.62 | J156: 是
A157: 154 | B157: 20230609 | C157: 兴义市敬南镇人民政府 | D157: 兴义市敬南镇农业农村服务中心（乡村振兴服务中心） | E157: 22321233402 | F157: 59.00 | G157: 79.8 | H157: 67.32
A158: 155 | B158: 20230611 | C158: 兴义市泥凼镇人民政府 | D158: 兴义市泥凼镇农业农村服务中心（乡村振兴服务中心） | E158: 22321233501 | F158: 77.67 | G158: 83.4 | H158: 79.96 | J158: 是
A159: 156 | B159: 20230612 | C159: 兴义市泥凼镇人民政府 | D159: 兴义市泥凼镇农业农村服务中心（乡村振兴服务中心） | E159: 22321233501 | F159: 65.00 | G159: 82 | H159: 71.80
A160: 157 | B160: 20230613 | C160: 兴义市泥凼镇人民政府 | D160: 兴义市泥凼镇退役军人服务站 | E160: 22321233502 | F160: 69.33 | G160: 82.2 | H160: 74.48 | J160: 是
A161: 158 | B161: 20230614 | C161: 兴义市泥凼镇人民政府 | D161: 兴义市泥凼镇退役军人服务站 | E161: 22321233502 | F161: 55.50 | G161: 79 | H161: 64.90
A162: 159 | B162: 20230615 | C162: 兴义市仓更镇人民政府 | D162: 兴义市仓更镇党务政务服务中心 | E162: 22321233601 | F162: 66.17 | G162: 80 | H162: 71.70 | J162: 是
A163: 160 | B163: 20230616 | C163: 兴义市仓更镇人民政府 | D163: 兴义市仓更镇党务政务服务中心 | E163: 22321233601 | F163: 65.00 | G163: 78.2 | H163: 70.28
A164: 161 | B164: 20230618 | C164: 兴义市仓更镇人民政府 | D164: 兴义市仓更镇农业农村服务中心（乡村振兴服务中心） | E164: 22321233602 | F164: 70.00 | G164: 80.2 | H164: 74.08 | J164: 是
A165: 162 | B165: 20230617 | C165: 兴义市仓更镇人民政府 | D165: 兴义市仓更镇农业农村服务中心（乡村振兴服务中心） | E165: 22321233602 | F165: 70.17 | G165: 78.8 | H165: 73.62
A166: 163 | B166: 20230619 | C166: 兴义市仓更镇人民政府 | D166: 兴义市仓更镇应急管理服务中心 | E166: 22321233603 | F166: 63.00 | G166: 76.8 | H166: 68.52 | J166: 是
A167: 164 | B167: 20230620 | C167: 兴义市仓更镇人民政府 | D167: 兴义市仓更镇应急管理服务中心 | E167: 22321233603 | F167: 61.17 | G167: 75.4 | H167: 66.86
A168: 165 | B168: 20230621 | C168: 兴义市七舍镇人民政府 | D168: 兴义市七舍镇党务政务服务中心 | E168: 22321233701 | F168: 70.17 | G168: 85.4 | H168: 76.26 | J168: 是
A169: 166 | B169: 20230622 | C169: 兴义市七舍镇人民政府 | D169: 兴义市七舍镇党务政务服务中心 | E169: 22321233701 | F169: 64.50 | G169: 79 | H169: 70.30
A170: 167 | B170: 20230623 | C170: 兴义市七舍镇人民政府 | D170: 兴义市七舍镇农业农村服务中心（乡村振兴服务中心） | E170: 22321233702 | F170: 71.67 | G170: 83.8 | H170: 76.52 | J170: 是
A171: 168 | B171: 20230624 | C171: 兴义市七舍镇人民政府 | D171: 兴义市七舍镇农业农村服务中心（乡村振兴服务中心） | E171: 22321233702 | F171: 64.67 | G171: 82 | H171: 71.60
A172: 169 | B172: 20230625 | C172: 兴义市捧乍镇人民政府 | D172: 兴义市捧乍镇农业农村服务中心（乡村振兴服务中心） | E172: 22321233801 | F172: 62.83 | G172: 80.2 | H172: 69.78 | J172: 是
A173: 170 | B173: 20230626 | C173: 兴义市捧乍镇人民政府 | D173: 兴义市捧乍镇农业农村服务中心（乡村振兴服务中心） | E173: 22321233801 | F173: 58.33 | G173: 69.6 | H173: 62.84
A174: 171 | B174: 20230628 | C174: 兴义市捧乍镇人民政府 | D174: 兴义市捧乍镇社会事务服务中心 | E174: 22321233802 | F174: 65.17 | G174: 84.4 | H174: 72.86 | J174: 是
A175: 172 | B175: 20230627 | C175: 兴义市捧乍镇人民政府 | D175: 兴义市捧乍镇社会事务服务中心 | E175: 22321233802 | F175: 67.67 | G175: 76.4 | H175: 71.16
A176: 173 | B176: 20230702 | C176: 兴义市捧乍镇人民政府 | D176: 兴义市捧乍镇社会治安综合治理中心（网格化管理服务中心） | E176: 22321233803 | F176: 65.17 | G176: 85 | H176: 73.10 | J176: 是
A177: 174 | B177: 20230701 | C177: 兴义市捧乍镇人民政府 | D177: 兴义市捧乍镇社会治安综合治理中心（网格化管理服务中心） | E177: 22321233803 | F177: 66.33 | G177: 77.8 | H177: 70.92
A178: 175 | B178: 20230704 | C178: 兴义市猪场坪镇人民政府 | D178: 兴义市猪场坪镇农业农村服务中心（乡村振兴服务中心） | E178: 22321233901 | F178: 69.33 | G178: 76.4 | H178: 72.16 | J178: 是
A179: 176 | B179: 20230705 | C179: 兴义市猪场坪镇人民政府 | D179: 兴义市猪场坪镇农业农村服务中心（乡村振兴服务中心） | E179: 22321233901 | F179: 69.33 | G179: 75.8 | H179: 71.92
A180: 177 | B180: 20230703 | C180: 兴义市猪场坪镇人民政府 | D180: 兴义市猪场坪镇农业农村服务中心（乡村振兴服务中心） | E180: 22321233901 | F180: 70.00 | G180: 69.8 | H180: =(F180*0.6)+(G180*0.4) -> 69.92
A181: 178 | B181: 20230706 | C181: 兴义市猪场坪镇人民政府 | D181: 兴义市猪场坪镇党务政务服务中心 | E181: 22321233902 | F181: 60.67 | G181: 81.8 | H181: 69.12 | J181: 是
A182: 179 | B182: 20230707 | C182: 兴义市猪场坪镇人民政府 | D182: 兴义市猪场坪镇党务政务服务中心 | E182: 22321233902 | F182: 59.17 | G182: 83.2 | H182: 68.78
A183: 180 | B183: 20230708 | C183: 兴义市威舍镇人民政府 | D183: 兴义市威舍镇农业农村服务中心（乡村振兴服务中心） | E183: 22321234001 | F183: 71.33 | G183: 84.4 | H183: 76.56 | J183: 是
A184: 181 | B184: 20230709 | C184: 兴义市威舍镇人民政府 | D184: 兴义市威舍镇农业农村服务中心（乡村振兴服务中心） | E184: 22321234001 | F184: 66.83 | G184: 80.4 | H184: 72.26
A185: 182 | B185: 20230710 | C185: 兴义市威舍镇人民政府 | D185: 兴义市威舍镇文化科技创新服务中心（新时代文明实践所) | E185: 22321234002 | F185: 64.67 | G185: 82.4 | H185: 71.76 | J185: 是
A186: 183 | B186: 20230711 | C186: 兴义市威舍镇人民政府 | D186: 兴义市威舍镇文化科技创新服务中心（新时代文明实践所) | E186: 22321234002 | F186: 63.17 | G186: 79.2 | H186: 69.58
A187: 184 | B187: 20230713 | C187: 兴义市雄武乡人民政府 | D187: 兴义市雄武乡农业农村服务中心（乡村振兴服务中心） | E187: 22321234101 | F187: 58.17 | G187: 79.8 | H187: 66.82 | J187: 是
A188: 185 | B188: 20230712 | C188: 兴义市雄武乡人民政府 | D188: 兴义市雄武乡农业农村服务中心（乡村振兴服务中心） | E188: 22321234101 | F188: 63.50 | G188: 缺考 | H188: =(F188*0.6) -> 38.10
A189: 186 | B189: 20230715 | C189: 兴义市雄武乡人民政府 | D189: 兴义市雄武乡应急管理服务中心 | E189: 22321234102 | F189: 65.00 | G189: 87 | H189: =(F189*0.6)+(G189*0.4) -> 73.80 | J189: 是
A190: 187 | B190: 20230714 | C190: 兴义市雄武乡人民政府 | D190: 兴义市雄武乡应急管理服务中心 | E190: 22321234102 | F190: 66.50 | G190: 80.4 | H190: 72.06
A191: 188 | B191: 20230716 | C191: 兴义市雄武乡人民政府 | D191: 兴义市雄武乡应急管理服务中心 | E191: 22321234103 | F191: 68.33 | G191: 80.6 | H191: 73.24 | J191: 是
A192: 189 | B192: 20230717 | C192: 兴义市雄武乡人民政府 | D192: 兴义市雄武乡应急管理服务中心 | E192: 22321234103 | F192: 66.50 | G192: 77.4 | H192: 70.86
A193: 190 | B193: 20230718 | C193: 兴义市沧江乡人民政府 | D193: 兴义市沧江乡党务政务服务中心 | E193: 22321234201 | F193: 59.17 | G193: 80.4 | H193: 67.66 | J193: 是
A194: 191 | B194: 20230719 | C194: 兴义市沧江乡人民政府 | D194: 兴义市沧江乡党务政务服务中心 | E194: 22321234201 | F194: 57.33 | G194: 74.4 | H194: 64.16
A195: 192 | B195: 20230720 | C195: 兴义市沧江乡人民政府 | D195: 兴义市沧江乡农业农村服务中心（乡村振兴服务中心） | E195: 22321234202 | F195: 68.50 | G195: 86.4 | H195: 75.66 | J195: 是
A196: 193 | B196: 20230721 | C196: 兴义市沧江乡人民政府 | D196: 兴义市沧江乡农业农村服务中心（乡村振兴服务中心） | E196: 22321234202 | F196: 61.17 | G196: 83 | H196: 69.90
A197: 194 | B197: 20230722 | C197: 兴义市沧江乡人民政府 | D197: 兴义市沧江乡农业农村服务中心（乡村振兴服务中心） | E197: 22321234203 | F197: 68.83 | G197: 83 | H197: 74.50 | J197: 是
A198: 195 | B198: 20230723 | C198: 兴义市沧江乡人民政府 | D198: 兴义市沧江乡农业农村服务中心（乡村振兴服务中心） | E198: 22321234203 | F198: 65.33 | G198: 80 | H198: 71.20
A199: 196 | B199: 20230725 | C199: 兴义市沧江乡人民政府 | D199: 兴义市沧江乡文化科技创新服务中心（新时代文明实践所) | E199: 22321234204 | F199: 64.83 | G199: 83 | H199: 72.10 | J199: 是
A200: 197 | B200: 20230724 | C200: 兴义市沧江乡人民政府 | D200: 兴义市沧江乡文化科技创新服务中心（新时代文明实践所) | E200: 22321234204 | F200: 66.17 | G200: 78.2 | H200: 70.98
... 336 more rows
